[Event "Modransky Cup 2025"]
[Site "Modra"]
[Date "2025.02.21"]
[Round "3.11"]
[White "Wolak, Jan"]
[Black "Kapinaj, Matus"]
[Result "0-1"]
[Annotator "NA"]
[ECO "B59"]
[WhiteElo "1762"]
[BlackElo "1999"]
[PlyCount "72"]
[EventDate "2025.02.20"]
[EventCountry "SVK"]
[SourceTitle "playchess.com"]
[Source "ChessBase"]
[SourceQuality "1"]
[TimeControl "5400+30"]

1. e4 {[%emt 0:00:05]} c5 {[%emt 0:00:32]} 2. Nf3 {[%emt 0:00:10]} d6 {[%emt 0:00:00]} 3. d4 {[%emt 0:00:15]} cxd4 {[%emt 0:00:02]} 4. Nxd4 {[%emt 0:00:05]} Nf6 {[%emt 0:00:05]} 5. Nc3 {[%emt 0:00:05]} Nc6 {[%emt 0:00:03]} 6. Be2 {[%emt 0:09:10]} e5 {[%emt 0:00:16]} 7. Nb3 {[%emt 0:00:48]} Be7 {[%emt 0:00:12]} 8. O-O {[%emt 0:00:11]} O-O {[%emt 0:00:06]} 9. f4 {[%emt 0:05:47]} a5 {[%emt 0:01:30]} 10. f5 {[%emt 0:07:45]} a4 {[%emt 0:02:25]} 11. Nd2 {[%emt 0:00:09]} d5 {[%emt 0:01:46]} 12. exd5 {[%emt 0:09:02]} Nxd5 {[%emt 0:03:11]} 13. Nxd5 {[%emt 0:01:20]} Qxd5 {[%emt 0:01:43]} 14. Nc4 {[%emt 0:02:40]} Qxd1 {[%emt 0:02:20]} 15. Bxd1 {[%emt 0:00:16]} b5 {[%emt 0:02:04]} 16. Nb6 {[%emt 0:00:38]} Bc5+ {[%emt 0:00:42]} 17. Kh1 {[%emt 0:00:16]} Bxb6 {[%emt 0:00:05]} 18. Bf3 {[%emt 0:02:25]} Bb7 {[%emt 0:00:34]} 19. Bd2 {[%emt 0:02:59]} Rfd8 {[%emt 0:02:29]} 20. Bc3 {[%emt 0:01:17]} f6 {[%emt 0:01:06]} 21. a3 {[%emt 0:00:11]} Rd7 {[%emt 0:03:33]} 22. Rfd1 {[%emt 0:03:05]} Rad8 {[%emt 0:00:57]} 23. Rxd7 {[%emt 0:01:07]} Rxd7 {[%emt 0:00:08]} 24. Be2 {[%emt 0:00:18]} Na7 {[%emt 0:00:49]} 25. Bb4 {[%emt 0:01:23]} Be4 {[%emt 0:01:32]} 26. c4 {[%emt 0:00:14]} Bd3 {[%emt 0:02:31]} 27. Bxd3 {[%emt 0:02:24]} Rxd3 {[%emt 0:01:41]} 28. cxb5 {[%emt 0:00:35]} Nxb5 {[%emt 0:01:38]} 29. Rc1 {[%emt 0:00:26]} h5 {[%emt 0:00:51]} 30. h3 {[%emt 0:00:18]} h4 {[%emt 0:01:37]} 31. Be1 {[%emt 0:01:59]} e4 {[%emt 0:01:24]} 32. Bxh4 {[%emt 0:00:58]} e3 {[%emt 0:00:27]} 33. Rc8+ {[%emt 0:01:58]} Kh7 {[%emt 0:01:42]} 34. Rb8 {[%emt 0:01:07]} Bc7 {[%emt 0:01:48]} 35. Rxb5 {[%emt 0:00:39]} Rd1+ {[%emt 0:00:08]} 36. Be1 {[%emt 0:00:07]} Rxe1# {[%emt 0:00:04]} 0-1

[Event "Modransky Cup 2025"]
[Site "Modra"]
[Date "2025.02.21"]
[Round "3.12"]
[White "Skaraiev, Mykhailo"]
[Black "Soldan, Jan"]
[Result "1/2-1/2"]
[Annotator "NA"]
[ECO "D35"]
[WhiteElo "1980"]
[BlackElo "1756"]
[PlyCount "124"]
[EventDate "2025.02.20"]
[EventCountry "SVK"]
[SourceTitle "playchess.com"]
[Source "ChessBase"]
[SourceQuality "1"]
[TimeControl "5400+30"]

1. d4 {[%emt 0:00:04]} d5 {[%emt 0:00:49]} 2. c4 {[%emt 0:00:06]} e6 {[%emt 0:00:18]} 3. Nc3 {[%emt 0:00:13]} Nf6 {[%emt 0:00:14]} 4. cxd5 {[%emt 0:00:44]} exd5 {[%emt 0:00:27]} 5. e3 {[%emt 0:01:31]} Be6 {[%emt 0:09:11]} 6. Nf3 {[%emt 0:00:45]} Bd6 {[%emt 0:01:14]} 7. Bd3 {[%emt 0:00:31]} O-O {[%emt 0:01:24]} 8. O-O {[%emt 0:00:20]} Bg4 {[%emt 0:03:29]} 9. h3 {[%emt 0:00:53]} Bh5 {[%emt 0:01:45]} 10. e4 {[%emt 0:01:45]} dxe4 {[%emt 0:00:58]} 11. Nxe4 {[%emt 0:01:25]} Nbd7 {[%emt 0:03:14]} 12. Nxd6 {[%emt 0:01:19]} cxd6 {[%emt 0:00:04]} 13. Bf4 {[%emt 0:00:58]} Qb6 {[%emt 0:05:52]} 14. Qd2 {[%emt 0:09:00]} Bg6 {[%emt 0:04:21]} 15. Bxg6 {[%emt 0:01:48]} fxg6 {[%emt 0:00:30]} 16. Rfe1 {[%emt 0:01:51]} Nd5 {[%emt 0:10:44]} 17. Bg3 {[%emt 0:01:57]} Rae8 {[%emt 0:10:51]} 18. Re2 {[%emt 0:04:01]} N5f6 {[%emt 0:02:15]} 19. Rae1 {[%emt 0:01:24]} Rxe2 {[%emt 0:01:21]} 20. Rxe2 {[%emt 0:00:29]} Qc6 {[%emt 0:08:55]} 21. Qe1 {[%emt 0:03:31]} d5 {[%emt 0:03:30]} 22. Re6 {[%emt 0:06:12]} Qc2 {[%emt 0:02:06]} 23. Bd6 {[%emt 0:05:05]} Rc8 {[%emt 0:01:32]} 24. Re7 {[%emt 0:00:55]} Qc1 {[%emt 0:01:22]} 25. Kh2 {[%emt 0:03:44]} Qxe1 {[%emt 0:01:18]} 26. Nxe1 {[%emt 0:02:37]} Re8 {[%emt 0:06:23]} 27. Nc2 {[%emt 0:01:11]} Rxe7 {[%emt 0:01:04]} 28. Bxe7 {[%emt 0:00:07]} Ne4 {[%emt 0:00:50]} 29. f3 {[%emt 0:00:39]} Nef6 {[%emt 0:00:43]} 30. Ne3 {[%emt 0:00:52]} Kf7 {[%emt 0:00:35]} 31. Bd8 {[%emt 0:01:29]} Ke6 {[%emt 0:02:23]} 32. g4 {[%emt 0:01:06]} h5 {[%emt 0:01:22]} 33. Kg3 {[%emt 0:00:45]} Nf8 {[%emt 0:04:49]} 34. Kh4 {[%emt 0:02:10]} N8h7 {[%emt 0:01:04]} 35. Bxf6 {[%emt 0:01:04]} Nxf6 {[%emt 0:01:48]} 36. Kg5 {[%emt 0:00:13]} hxg4 {[%emt 0:01:24]} 37. hxg4 {[%emt 0:00:24]} Kf7 {[%emt 0:00:52]} 38. Ng2 {[%emt 0:01:31]} Nh7+ {[%emt 0:00:36]} 39. Kf4 {[%emt 0:00:19]} Ke6 {[%emt 0:01:28]} 40. g5 {[%emt 0:00:30]} Kd6 {[%emt 0:00:37]} 41. Ne3 {[%emt 0:00:34]} Nf8 {[%emt 0:00:06]} 42. Nc2 {[%emt 0:01:09]} a5 {[%emt 0:01:50]} 43. Kg4 {[%emt 0:00:32]} Nd7 {[%emt 0:02:07]} 44. f4 {[%emt 0:00:29]} Ke6 {[%emt 0:00:47]} 45. Ne3 {[%emt 0:00:40]} Nf8 {[%emt 0:01:42]} 46. f5+ {[%emt 0:00:24]} gxf5+ {[%emt 0:00:03]} 47. Nxf5 {[%emt 0:00:26]} g6 {[%emt 0:00:02]} 48. Nh4 {[%emt 0:00:51]} b5 {[%emt 0:00:11]} 49. Nf3 {[%emt 0:01:03]} Nd7 {[%emt 0:00:19]} 50. Kf4 {[%emt 0:00:40]} Kd6 {[%emt 0:01:26]} 51. Ke3 {[%emt 0:01:29]} Nf8 {[%emt 0:00:16]} 52. Nd2 {[%emt 0:00:32]} Ne6 {[%emt 0:00:22]} 53. Nf3 {[%emt 0:00:22]} Kc6 {[%emt 0:00:59]} 54. Ne5+ {[%emt 0:00:27]} Kd6 {[%emt 0:00:15]} 55. Nxg6 {[%emt 0:01:07]} Nxg5 {[%emt 0:00:03]} 56. Ne5 {[%emt 0:00:38]} Ne6 {[%emt 0:00:28]} 57. Nd3 {[%emt 0:00:45]} Kc6 {[%emt 0:00:19]} 58. Nf4 {[%emt 0:01:54]} Kd6 {[%emt 0:00:56]} 59. Nxe6 {[%emt 0:01:59]} Kxe6 {[%emt 0:00:01]} 60. Kf4 {[%emt 0:00:23]} Kf6 {[%emt 0:00:29]} 61. a3 {[%emt 0:01:19]} a4 {[%emt 0:01:24]} 62. Kg4 {[%emt 0:00:53]} Kg6 {[%emt 0:00:02]} 1/2-1/2

[Event "Modransky Cup 2025"]
[Site "Modra"]
[Date "2025.02.21"]
[Round "3.13"]
[White "Povysil, Peter"]
[Black "Kolibik, Jan"]
[Result "1/2-1/2"]
[Annotator "NA"]
[ECO "D00"]
[WhiteElo "1890"]
[BlackElo "1683"]
[PlyCount "55"]
[EventDate "2025.02.20"]
[EventCountry "SVK"]
[SourceTitle "playchess.com"]
[Source "ChessBase"]
[SourceQuality "1"]
[TimeControl "5400+30"]

1. d4 {[%emt 0:00:05]} Nf6 {[%emt 0:00:28]} 2. Nc3 {[%emt 0:00:12]} d5 {[%emt 0:00:29]} 3. Bf4 {[%emt 0:00:06]} e6 {[%emt 0:00:40]} 4. e3 {[%emt 0:02:27]} a6 {[%emt 0:00:23]} 5. Bd3 {[%emt 0:03:20]} c5 {[%emt 0:02:15]} 6. Nf3 {[%emt 0:00:45]} c4 {[%emt 0:00:19]} 7. Be2 {[%emt 0:00:06]} Bb4 {[%emt 0:03:23]} 8. Nd2 {[%emt 0:05:35]} Qa5 {[%emt 0:01:47]} 9. Ncb1 {[%emt 0:01:36]} c3 {[%emt 0:01:34]} 10. bxc3 {[%emt 0:00:07]} Bxc3 {[%emt 0:00:15]} 11. Nxc3 {[%emt 0:00:05]} Qxc3 {[%emt 0:00:08]} 12. O-O {[%emt 0:00:08]} O-O {[%emt 0:00:26]} 13. Bd3 {[%emt 0:02:13]} Nbd7 {[%emt 0:01:49]} 14. Bd6 {[%emt 0:05:00]} Re8 {[%emt 0:00:15]} 15. f4 {[%emt 0:00:14]} b5 {[%emt 0:01:30]} 16. Rb1 {[%emt 0:03:52]} Qc6 {[%emt 0:02:14]} 17. Be5 {[%emt 0:00:47]} Bb7 {[%emt 0:02:52]} 18. Qe1 {[%emt 0:04:50]} g6 {[%emt 0:00:31]} 19. Qh4 {[%emt 0:00:56]} Ne4 {[%emt 0:01:24]} 20. Rf3 {[%emt 0:31:04]} Nxe5 {[%emt 0:03:34]} 21. fxe5 {[%emt 0:00:23]} Nxd2 {[%emt 0:00:23]} 22. Rh3 {[%emt 0:00:19]} h5 {[%emt 0:04:56]} 23. Bxg6 {[%emt 0:00:47]} fxg6 {[%emt 0:00:51]} 24. Qf6 {[%emt 0:00:31]} Kh7 {[%emt 0:01:08]} 25. Rxh5+ {[%emt 0:02:09]} gxh5 {[%emt 0:00:27]} 26. Qf7+ {[%emt 0:00:12]} Kh8 {[%emt 0:00:34]} 27. Qf6+ {[%emt 0:00:09]} Kg8 {[%emt 0:00:21]} 28. Qg6+ {[%emt 0:00:04]} 1/2-1/2

[Event "Modransky Cup 2025"]
[Site "Modra"]
[Date "2025.02.21"]
[Round "3.14"]
[White "Veres, Alex"]
[Black "Grom, Stanislav"]
[Result "1/2-1/2"]
[Annotator "NA"]
[ECO "B00"]
[WhiteElo "1699"]
[BlackElo "1846"]
[PlyCount "86"]
[EventDate "2025.02.20"]
[EventCountry "SVK"]
[SourceTitle "playchess.com"]
[Source "ChessBase"]
[SourceQuality "1"]
[TimeControl "5400+30"]

1. e4 {[%emt 0:00:05]} Nc6 {[%emt 0:07:47]} 2. d4 {[%emt 0:00:17]} e5 {[%emt 0:00:05]} 3. dxe5 {[%emt 0:00:52]} Nxe5 {[%emt 0:00:08]} 4. f4 {[%emt 0:00:15]} Ng6 {[%emt 0:00:06]} 5. Nf3 {[%emt 0:00:11]} Bc5 {[%emt 0:01:53]} 6. Bc4 {[%emt 0:00:27]} d6 {[%emt 0:00:37]} 7. Nc3 {[%emt 0:02:12]} Be6 {[%emt 0:00:20]} 8. Bb3 {[%emt 0:01:21]} Bxb3 {[%emt 0:00:35]} 9. axb3 {[%emt 0:00:10]} a6 {[%emt 0:00:31]} 10. Qd3 {[%emt 0:05:19]} Nf6 {[%emt 0:01:17]} 11. Be3 {[%emt 0:01:24]} O-O {[%emt 0:02:00]} 12. f5 {[%emt 0:02:55]} Bxe3 {[%emt 0:05:46]} 13. Qxe3 {[%emt 0:01:17]} Ng4 {[%emt 0:02:01]} 14. Qg5 {[%emt 0:03:05]} N6e5 {[%emt 0:08:09]} 15. Qxd8 {[%emt 0:03:07]} Raxd8 {[%emt 0:00:10]} 16. O-O {[%emt 0:01:30]} Rfe8 {[%emt 0:03:03]} 17. Rae1 {[%emt 0:04:28]} Nf6 {[%emt 0:03:59]} 18. h3 {[%emt 0:03:09]} Nxf3+ {[%emt 0:06:13]} 19. Rxf3 {[%emt 0:01:49]} Re5 {[%emt 0:00:46]} 20. Rfe3 {[%emt 0:02:34]} Rde8 {[%emt 0:00:19]} 21. Kf2 {[%emt 0:01:16]} c6 {[%emt 0:01:41]} 22. g4 {[%emt 0:00:00]} h6 {[%emt 0:00:14]} 23. Kf3 {[%emt 0:00:35]} g5 {[%emt 0:02:34]} 24. Nd1 {[%emt 0:10:23]} Nd7 {[%emt 0:06:28]} 25. Nf2 {[%emt 0:00:36]} f6 {[%emt 0:02:16]} 26. Nd3 {[%emt 0:02:46]} Ra5 {[%emt 0:03:06]} 27. b4 {[%emt 0:05:18]} Ra2 {[%emt 0:01:49]} 28. Rd1 {[%emt 0:06:29]} Kf7 {[%emt 0:02:40]} 29. c3 {[%emt 0:06:59]} Ke7 {[%emt 0:01:59]} 30. Re2 {[%emt 0:02:00]} a5 {[%emt 0:10:40]} 31. Red2 {[%emt 0:04:57]} Rd8 {[%emt 0:02:50]} 32. Nc1 {[%emt 0:02:49]} Ne5+ {[%emt 0:00:24]} 33. Ke2 {[%emt 0:00:41]} Ra4 {[%emt 0:01:59]} 34. Rd4 {[%emt 0:07:24]} axb4 {[%emt 0:01:42]} 35. cxb4 {[%emt 0:00:50]} c5 {[%emt 0:06:27]} 36. bxc5 {[%emt 0:01:30]} Rxd4 {[%emt 0:00:52]} 37. Rxd4 {[%emt 0:00:30]} dxc5 {[%emt 0:01:31]} 38. Ra4 {[%emt 0:01:18]} c4 {[%emt 0:04:33]} 39. Rb4 {[%emt 0:01:21]} Rb8 {[%emt 0:01:59]} 40. Na2 {[%emt 0:02:10]} Kd6 {[%emt 0:02:00]} 41. Rb6+ {[%emt 0:02:12]} Nc6 {[%emt 0:00:03]} 42. Nb4 {[%emt 0:00:24]} Re8 {[%emt 0:03:39]} 43. Ke3 {[%emt 0:01:23]} Kc5 {[%emt 0:01:40]} 1/2-1/2

[Event "Modransky Cup 2025"]
[Site "Modra"]
[Date "2025.02.21"]
[Round "3.15"]
[White "Hanzel, Richard"]
[Black "Pisarcik, Richard"]
[Result "0-1"]
[Annotator "NA"]
[ECO "E05"]
[WhiteElo "1668"]
[BlackElo "1837"]
[PlyCount "152"]
[EventDate "2025.02.20"]
[EventCountry "SVK"]
[SourceTitle "playchess.com"]
[Source "ChessBase"]
[SourceQuality "1"]
[TimeControl "5400+30"]

1. d4 {[%emt 0:00:23]} d5 {[%emt 0:00:43]} 2. Nf3 {[%emt 0:00:07]} Nf6 {[%emt 0:00:30]} 3. c4 {[%emt 0:00:09]} e6 {[%emt 0:00:15]} 4. g3 {[%emt 0:00:08]} Be7 {[%emt 0:00:43]} 5. Bg2 {[%emt 0:00:07]} O-O {[%emt 0:00:34]} 6. O-O {[%emt 0:00:09]} dxc4 {[%emt 0:04:09]} 7. Qc2 {[%emt 0:00:07]} a6 {[%emt 0:01:04]} 8. a4 {[%emt 0:00:08]} Bd7 {[%emt 0:00:17]} 9. Qxc4 {[%emt 0:00:07]} Bc6 {[%emt 0:00:07]} 10. Bg5 {[%emt 0:00:20]} Nbd7 {[%emt 0:02:26]} 11. Nc3 {[%emt 0:02:53]} Nb6 {[%emt 0:02:32]} 12. Qd3 {[%emt 0:01:51]} Nfd5 {[%emt 0:07:44]} 13. Bxe7 {[%emt 0:02:18]} Qxe7 {[%emt 0:01:25]} 14. Ne5 {[%emt 0:00:59]} Nb4 {[%emt 0:09:30]} 15. Nxc6 {[%emt 0:01:59]} bxc6 {[%emt 0:00:17]} 16. Qd1 {[%emt 0:02:12]} a5 {[%emt 0:00:35]} 17. Qb3 {[%emt 0:03:01]} Rad8 {[%emt 0:02:07]} 18. Rfd1 {[%emt 0:01:23]} c5 {[%emt 0:02:54]} 19. dxc5 {[%emt 0:01:08]} Qxc5 {[%emt 0:02:08]} 20. Rxd8 {[%emt 0:04:00]} Rxd8 {[%emt 0:00:15]} 21. Ne4 {[%emt 0:08:19]} Qe7 {[%emt 0:02:01]} 22. Rc1 {[%emt 0:07:30]} h6 {[%emt 0:05:14]} 23. Nc5 {[%emt 0:03:32]} Rd2 {[%emt 0:03:41]} 24. Bf3 {[%emt 0:01:31]} Qf6 {[%emt 0:05:00]} 25. Ne4 {[%emt 0:07:48]} Qxb2 {[%emt 0:03:08]} 26. Qxb2 {[%emt 0:00:12]} Rxb2 {[%emt 0:00:05]} 27. Rxc7 {[%emt 0:00:13]} Nxa4 {[%emt 0:01:36]} 28. Ra7 {[%emt 0:00:59]} Nc6 {[%emt 0:03:18]} 29. Ra8+ {[%emt 0:01:03]} Rb8 {[%emt 0:00:12]} 30. Ra6 {[%emt 0:01:41]} Rb6 {[%emt 0:08:15]} 31. Ra8+ {[%emt 0:00:24]} Kh7 {[%emt 0:01:34]} 32. Nd6 {[%emt 0:01:55]} Ne5 {[%emt 0:02:14]} 33. Nc8 {[%emt 0:02:23]} Nxf3+ {[%emt 0:00:53]} 34. exf3 {[%emt 0:00:02]} Rc6 {[%emt 0:08:47]} 35. Rxa5 {[%emt 0:01:05]} Nc3 {[%emt 0:05:12]} 36. Na7 {[%emt 0:01:00]} Rc7 {[%emt 0:00:25]} 37. Nb5 {[%emt 0:00:13]} Rc5 {[%emt 0:00:53]} 38. Nxc3 {[%emt 0:02:23]} Rxa5 {[%emt 0:00:05]} 39. Kg2 {[%emt 0:00:07]} f5 {[%emt 0:00:37]} 40. f4 {[%emt 0:00:16]} Kg6 {[%emt 0:00:37]} 41. Ne2 {[%emt 0:00:18]} Ra4 {[%emt 0:00:18]} 42. Nc1 {[%emt 0:00:34]} Ra3 {[%emt 0:00:57]} 43. Ne2 {[%emt 0:00:14]} Rd3 {[%emt 0:00:21]} 44. Nc1 {[%emt 0:00:14]} Rc3 {[%emt 0:00:06]} 45. Ne2 {[%emt 0:00:05]} Rc4 {[%emt 0:00:04]} 46. Ng1 {[%emt 0:00:20]} Kf6 {[%emt 0:00:45]} 47. h4 {[%emt 0:00:39]} g5 {[%emt 0:01:44]} 48. hxg5+ {[%emt 0:00:07]} hxg5 {[%emt 0:00:04]} 49. fxg5+ {[%emt 0:00:40]} Kxg5 {[%emt 0:00:06]} 50. Nf3+ {[%emt 0:00:34]} Kf6 {[%emt 0:00:15]} 51. Nd2 {[%emt 0:00:15]} Rc2 {[%emt 0:00:12]} 52. Nf1 {[%emt 0:00:20]} e5 {[%emt 0:00:55]} 53. Ne3 {[%emt 0:00:14]} Rd2 {[%emt 0:00:55]} 54. Nf1 {[%emt 0:00:32]} Rd3 {[%emt 0:00:39]} 55. Nh2 {[%emt 0:00:40]} e4 {[%emt 0:01:08]} 56. Nf1 {[%emt 0:00:15]} f4 {[%emt 0:02:16]} 57. gxf4 {[%emt 0:00:29]} Kf5 {[%emt 0:00:04]} 58. Ng3+ {[%emt 0:00:44]} Kxf4 {[%emt 0:00:12]} 59. Ne2+ {[%emt 0:00:33]} Kg4 {[%emt 0:01:44]} 60. Ng3 {[%emt 0:02:45]} Rd4 {[%emt 0:02:54]} 61. Nf1 {[%emt 0:00:35]} Kf4 {[%emt 0:01:40]} 62. Ng3 {[%emt 0:03:50]} Ra4 {[%emt 0:00:30]} 63. Nh5+ {[%emt 0:01:42]} Kg4 {[%emt 0:01:36]} 64. Nf6+ {[%emt 0:00:56]} Kh4 {[%emt 0:01:10]} 65. Nd5 {[%emt 0:00:34]} Ra3 {[%emt 0:02:51]} 66. Ne3 {[%emt 0:01:47]} Rxe3 {[%emt 0:01:26]} 67. fxe3 {[%emt 0:00:11]} Kg4 {[%emt 0:00:02]} 68. Kf2 {[%emt 0:00:08]} Kh3 {[%emt 0:00:05]} 69. Kf1 {[%emt 0:03:52]} Kg3 {[%emt 0:00:12]} 70. Ke2 {[%emt 0:00:03]} Kg2 {[%emt 0:00:04]} 71. Ke1 {[%emt 0:00:17]} Kf3 {[%emt 0:00:06]} 72. Kd2 {[%emt 0:00:02]} Kf2 {[%emt 0:00:05]} 73. Kd1 {[%emt 0:00:12]} Kxe3 {[%emt 0:00:16]} 74. Ke1 {[%emt 0:00:12]} Kf3 {[%emt 0:00:05]} 75. Kf1 {[%emt 0:00:05]} e3 {[%emt 0:00:06]} 76. Ke1 {[%emt 0:00:19]} e2 {[%emt 0:00:03]} 0-1

[Event "Modransky Cup 2025"]
[Site "Modra"]
[Date "2025.02.21"]
[Round "3.16"]
[White "Nosal, Tobias"]
[Black "Sara, J.S."]
[Result "1-0"]
[Annotator "NA"]
[ECO "A07"]
[WhiteElo "1807"]
[BlackElo "1774"]
[PlyCount "25"]
[EventDate "2025.02.20"]
[EventCountry "SVK"]
[SourceTitle "playchess.com"]
[Source "ChessBase"]
[SourceQuality "1"]
[TimeControl "5400+30"]

1. Nf3 {[%emt 0:00:06]} d5 {[%emt 0:00:49]} 2. g3 {[%emt 0:00:06]} b6 {[%emt 0:00:14]} 3. Bg2 {[%emt 0:01:07]} f6 {[%emt 0:01:17]} 4. d4 {[%emt 0:00:24]} Nc6 {[%emt 0:00:24]} 5. c4 {[%emt 0:02:21]} Be6 {[%emt 0:01:26]} 6. cxd5 {[%emt 0:03:01]} Bxd5 {[%emt 0:00:56]} 7. Nc3 {[%emt 0:00:18]} Bf7 {[%emt 0:01:21]} 8. Qa4 {[%emt 0:02:28]} Qd7 {[%emt 0:03:47]} 9. Ne5 {[%emt 0:00:57]} Qe6 {[%emt 0:01:10]} 10. Qxc6+ {[%emt 0:01:29]} Kd8 {[%emt 0:02:28]} 11. Qxa8+ {[%emt 0:01:19]} Qc8 {[%emt 0:00:15]} 12. Nxf7+ {[%emt 0:00:19]} Kd7 {[%emt 0:00:34]} 13. Qc6# {[%emt 0:00:20]} 1-0

[Event "Modransky Cup 2025"]
[Site "Modra"]
[Date "2025.02.21"]
[Round "3.17"]
[White "Pikulik, Roman"]
[Black "Hrckova, Anna"]
[Result "0-1"]
[Annotator "NA"]
[ECO "A23"]
[WhiteElo "1595"]
[BlackElo "1655"]
[PlyCount "52"]
[EventDate "2025.02.20"]
[EventCountry "SVK"]
[SourceTitle "playchess.com"]
[Source "ChessBase"]
[SourceQuality "1"]
[TimeControl "5400+30"]

1. c4 {[%emt 0:00:37]} e5 {[%emt 0:00:06]} 2. Nc3 {[%emt 0:00:09]} Nf6 {[%emt 0:00:08]} 3. g3 {[%emt 0:00:10]} c6 {[%emt 0:00:09]} 4. Bg2 {[%emt 0:00:45]} d5 {[%emt 0:00:10]} 5. cxd5 {[%emt 0:00:18]} cxd5 {[%emt 0:00:09]} 6. e3 {[%emt 0:00:14]} Nc6 {[%emt 0:01:22]} 7. Nge2 {[%emt 0:00:58]} Bf5 {[%emt 0:15:26]} 8. a3 {[%emt 0:00:54]} d4 {[%emt 0:07:23]} 9. Nb1 {[%emt 0:00:58]} Qd7 {[%emt 0:03:52]} 10. O-O {[%emt 0:06:54]} Bh3 {[%emt 0:00:31]} 11. f4 {[%emt 0:00:30]} Bxg2 {[%emt 0:01:02]} 12. Kxg2 {[%emt 0:00:12]} Qd5+ {[%emt 0:00:53]} 13. Kg1 {[%emt 0:00:39]} Rd8 {[%emt 0:11:24]} 14. fxe5 {[%emt 0:00:24]} dxe3 {[%emt 0:06:13]} 15. exf6 {[%emt 0:04:40]} exd2 {[%emt 0:00:32]} 16. Nxd2 {[%emt 0:00:20]} Bc5+ {[%emt 0:00:29]} 17. Rf2 {[%emt 0:00:44]} Bxf2+ {[%emt 0:00:21]} 18. Kxf2 {[%emt 0:00:35]} Qf5+ {[%emt 0:00:16]} 19. Kg2 {[%emt 0:01:17]} Qxf6 {[%emt 0:00:31]} 20. Qc2 {[%emt 0:05:27]} O-O {[%emt 0:02:22]} 21. Rb1 {[%emt 0:00:18]} Rfe8 {[%emt 0:00:22]} 22. Nc3 {[%emt 0:01:43]} Nd4 {[%emt 0:01:21]} 23. Qd1 {[%emt 0:01:58]} Qc6+ {[%emt 0:00:39]} 24. Kf1 {[%emt 0:01:02]} Qa6+ {[%emt 0:08:13]} 25. Kg2 {[%emt 0:00:30]} Nf5 {[%emt 0:01:07]} 26. Qf3 {[%emt 0:01:40]} Ne3+ {[%emt 0:02:01]} 0-1

[Event "Modransky Cup 2025"]
[Site "Modra"]
[Date "2025.02.21"]
[Round "3.18"]
[White "Vondruska, Leos"]
[Black "Hudak, Michal"]
[Result "1/2-1/2"]
[Annotator "NA"]
[ECO "C01"]
[WhiteElo "1545"]
[BlackElo "1823"]
[PlyCount "48"]
[EventDate "2025.02.20"]
[EventCountry "SVK"]
[SourceTitle "playchess.com"]
[Source "ChessBase"]
[SourceQuality "1"]
[TimeControl "5400+30"]

1. e4 {[%emt 0:00:06]} e6 {[%emt 0:00:37]} 2. d4 {[%emt 0:00:24]} d5 {[%emt 0:00:00]} 3. exd5 {[%emt 0:02:08]} exd5 {[%emt 0:00:00]} 4. Bb5+ {[%emt 0:01:33]} c6 {[%emt 0:00:43]} 5. Be2 {[%emt 0:01:38]} Nf6 {[%emt 0:00:25]} 6. Nf3 {[%emt 0:02:20]} Bd6 {[%emt 0:00:50]} 7. Bg5 {[%emt 0:06:15]} O-O {[%emt 0:01:01]} 8. O-O {[%emt 0:01:43]} Nbd7 {[%emt 0:03:58]} 9. Nbd2 {[%emt 0:02:07]} h6 {[%emt 0:00:18]} 10. Bh4 {[%emt 0:01:51]} Qc7 {[%emt 0:07:04]} 11. Bxf6 {[%emt 0:01:55]} Nxf6 {[%emt 0:00:10]} 12. g3 {[%emt 0:01:57]} Re8 {[%emt 0:00:59]} 13. Re1 {[%emt 0:01:55]} Ng4 {[%emt 0:02:53]} 14. Nh4 {[%emt 0:07:38]} Nf6 {[%emt 0:02:10]} 15. c3 {[%emt 0:01:23]} Bh3 {[%emt 0:18:44]} 16. Bf1 {[%emt 0:03:06]} Qd7 {[%emt 0:02:20]} 17. Bg2 {[%emt 0:03:04]} Rxe1+ {[%emt 0:01:19]} 18. Qxe1 {[%emt 0:00:32]} Bxg2 {[%emt 0:01:00]} 19. Kxg2 {[%emt 0:00:32]} Re8 {[%emt 0:01:48]} 20. Qf1 {[%emt 0:02:24]} Qe6 {[%emt 0:02:34]} 21. Nhf3 {[%emt 0:02:55]} Qe2 {[%emt 0:01:26]} 22. Re1 {[%emt 0:01:36]} Qxf1+ {[%emt 0:00:44]} 23. Rxf1 {[%emt 0:01:13]} Ng4 {[%emt 0:01:41]} 24. h3 {[%emt 0:01:38]} Nf6 {[%emt 0:00:22]} 1/2-1/2

[Event "Modransky Cup 2025"]
[Site "Modra"]
[Date "2025.02.21"]
[Round "3.19"]
[White "Ronaj, Filip"]
[Black "Banas, Samuel"]
[Result "1/2-1/2"]
[Annotator "NA"]
[ECO "C54"]
[WhiteElo "1746"]
[BlackElo "1617"]
[PlyCount "63"]
[EventDate "2025.02.20"]
[EventCountry "SVK"]
[SourceTitle "playchess.com"]
[Source "ChessBase"]
[SourceQuality "1"]
[TimeControl "5400+30"]

1. e4 {[%emt 0:00:04]} e5 {[%emt 0:00:05]} 2. Nf3 {[%emt 0:00:08]} Nc6 {[%emt 0:00:05]} 3. Bc4 {[%emt 0:00:14]} Bc5 {[%emt 0:00:19]} 4. c3 {[%emt 0:00:14]} Nf6 {[%emt 0:00:09]} 5. d3 {[%emt 0:00:12]} h6 {[%emt 0:00:15]} 6. b4 {[%emt 0:00:17]} Bb6 {[%emt 0:00:17]} 7. a4 {[%emt 0:00:03]} a5 {[%emt 0:00:30]} 8. b5 {[%emt 0:00:11]} Ne7 {[%emt 0:00:37]} 9. O-O {[%emt 0:00:13]} O-O {[%emt 0:00:11]} 10. Re1 {[%emt 0:00:03]} c6 {[%emt 0:00:34]} 11. Nbd2 {[%emt 0:00:34]} d5 {[%emt 0:00:58]} 12. Bb3 {[%emt 0:01:57]} Bg4 {[%emt 0:00:39]} 13. Nf1 {[%emt 0:01:09]} dxe4 {[%emt 0:01:10]} 14. dxe4 {[%emt 0:00:47]} Qxd1 {[%emt 0:00:08]} 15. Bxd1 {[%emt 0:00:12]} Rad8 {[%emt 0:00:46]} 16. Ba3 {[%emt 0:01:36]} Rfe8 {[%emt 0:03:03]} 17. Nxe5 {[%emt 0:00:24]} Bxd1 {[%emt 0:00:56]} 18. Raxd1 {[%emt 0:00:11]} Rxd1 {[%emt 0:00:25]} 19. Rxd1 {[%emt 0:00:12]} Nxe4 {[%emt 0:01:29]} 20. Ne3 {[%emt 0:08:18]} Nxc3 {[%emt 0:02:46]} 21. Rd7 {[%emt 0:00:29]} Ned5 {[%emt 0:02:01]} 22. N3c4 {[%emt 0:09:04]} Nxa4 {[%emt 0:04:18]} 23. bxc6 {[%emt 0:05:51]} bxc6 {[%emt 0:01:16]} 24. g3 {[%emt 0:01:21]} Nb4 {[%emt 0:09:18]} 25. Rxf7 {[%emt 0:05:25]} Nd3 {[%emt 0:02:12]} 26. Nxd3 {[%emt 0:04:21]} Kxf7 {[%emt 0:00:35]} 27. Nd6+ {[%emt 0:00:01]} Ke7 {[%emt 0:00:37]} 28. Nxe8+ {[%emt 0:00:05]} Kxe8 {[%emt 0:00:14]} 29. Kf1 {[%emt 0:00:50]} Kd7 {[%emt 0:01:19]} 30. Ne5+ {[%emt 0:03:26]} Kc7 {[%emt 0:00:54]} 31. Nc4 {[%emt 0:01:30]} c5 {[%emt 0:02:09]} 32. Ke2 {[%emt 0:03:14]} 1/2-1/2